bitfinex/quotes_ETHUSD_20250822
["timestamp","ask_amount","ask_price","bid_price","bid_amount"]
[1755833536527,0.66,4285.8,4285.4,0.001]
[1755833536728,7.63633118,4285.5,4285.4,0.001]
[1755833536935,14.55533118,4285.5,4285.4,0.001]
[1755833537107,0.66,4285.4,4284.7,0.093599]
[1755833537300,6.97633118,4284.9,4284.7,0.093599]
[1755833537498,12.69033118,4284.9,4284.7,0.093599]
[1755833537704,12.69033118,4284.9,4283.7,0.3668]
[1755833537705,13.13513118,4284.9,4283.7,0.3668]
[1755833537904,13.50048108,4284.9,4283.7,0.3668]
[1755833538145,13.50048108,4284.9,4284.5,0.093603]
[1755833539316,14.16048108,4284.9,4283.4,0.39014594]
[1755833539626,14.16048108,4284.9,4284.2,0.093611]
[1755833541142,10.24148108,4284.9,4284.2,0.093611]
[1755833541366,2.1603499,4284.9,4284.8,0.3069]
[1755833541653,3.0,4284.8,4283.8,0.3868]
[1755833541935,9.8202499,4284.9,4284.1,0.3069]
[1755833541936,6.68123118,4284.3,4284.1,0.3069]
[1755833542108,3.937,4284.2,4284.1,0.3069]
[1755833542511,3.937,4284.2,4284.1,0.5938]
[1755833542711,0.36537517,4284.2,4284.1,0.5938]
[1755833542950,4.30137517,4284.2,4284.1,0.5938]
[1755833546558,4.30137517,4284.2,4284.1,0.3069]
[1755833548417,4.30137517,4284.2,4284.1,0.5938]
[1755833548662,4.30137517,4284.2,4284.1,0.2869]
[1755833549018,4.30137517,4284.2,4283.8,0.02]
[1755833549236,1.796,4284.1,4283.8,0.02]
[1755833549432,1.796,4284.1,4284.0,0.2869]
[1755833549620,5.728,4284.1,4284.0,0.2869]
[1755833550155,5.728,4284.1,4284.0,0.6537]
[1755833550521,5.728,4284.1,4284.0,0.2869]
[1755833552353,1.796,4284.1,4284.0,0.2869]
[1755833552555,5.729,4284.1,4284.0,0.2869]
[1755833553627,1.796,4284.1,4284.0,0.2869]
[1755833553827,5.728,4284.1,4284.0,0.2869]
[1755833554623,5.728,4284.1,4283.8,0.02]
[1755833554624,9.4679,4284.1,4283.8,0.02]
[1755833554862,9.68123118,4283.9,4283.8,0.02]
[1755833555164,14.57433118,4283.9,4283.8,0.02]
[1755833555320,6.951,4283.9,4283.8,0.02]
[1755833555522,6.68123118,4283.9,4283.8,0.02]
[1755833555724,0.4448,4285.3,4283.8,0.3069]
[1755833555922,0.4448,4285.3,4283.9,0.3668]
[1755833555923,1.796,4285.2,4283.9,0.3668]
[1755833556379,3.962,4285.1,4284.1,2.33417131]
[1755833556528,8.47723118,4285.2,4285.1,0.2869]
[1755833556726,15.43923118,4285.2,4285.1,0.2869]
[1755833556938,15.73433118,4285.2,4284.4,0.3668]
[1755833557238,15.73433118,4285.2,4284.1,0.3668]
[1755833557441,6.68123118,4284.8,4284.4,0.70188]
[1755833557638,3.961,4284.7,4284.4,0.70188]
[1755833557823,3.961,4284.7,4283.9,0.3668]
[1755833558246,3.961,4284.7,4284.1,0.701944]
[1755833559458,4.32634491,4284.6,4284.1,0.701944]
[1755833559835,3.96,4284.5,4284.1,0.701944]
[1755833560026,3.96,4284.5,4284.4,0.3104]
[1755833560426,4.274,4284.5,4284.1,0.701944]
[1755833560668,6.68123118,4284.2,4283.8,0.02]
[1755833560969,0.314,4283.9,4283.8,0.02]
[1755833561165,4.293,4283.9,4283.8,0.02]
[1755833561459,4.7584,4283.9,4283.8,0.02]
[1755833561640,5.12381837,4283.9,4283.8,0.02]
[1755833562426,5.12281837,4283.9,4283.8,0.02]
[1755833564164,1.14481837,4283.9,4283.8,0.02]
[1755833564471,5.12181837,4283.9,4283.8,0.02]
[1755833565078,5.12081837,4283.9,4283.8,0.02]
[1755833565229,4.7554,4283.9,4283.8,0.02]
[1755833565425,4.7554,4283.9,4283.8,0.021]
[1755833566972,3.976,4283.9,4283.8,0.3314]
[1755833569196,6.68123118,4284.0,4283.8,0.3314]
[1755833569348,3.975,4283.9,4283.8,0.3314]
[1755833569556,3.976,4283.9,4283.8,0.021]
[1755833570993,4.34141784,4283.9,4283.8,0.021]
[1755833571551,5.12081784,4283.9,4283.8,0.021]
[1755833572055,4.34141784,4283.9,4283.8,0.021]
[1755833572658,4.34041784,4283.9,4283.8,0.3314]
[1755833572977,4.34041784,4283.9,4283.8,0.021]
[1755833573177,0.36541784,4283.9,4283.8,0.021]
[1755833573376,4.33941784,4283.9,4283.8,0.3314]
[1755833573559,0.36541784,4283.9,4283.8,0.3314]
[1755833573889,4.33941784,4283.9,4283.8,0.3314]
[1755833574091,4.33941784,4283.9,4283.8,0.021]
[1755833574456,4.33941784,4283.9,4283.8,0.3314]
[1755833574656,0.36541784,4283.9,4283.8,0.3314]
[1755833574855,4.33741784,4283.9,4283.8,0.3314]
[1755833575309,4.33741784,4283.9,4283.8,0.021]
[1755833576572,4.33741784,4283.9,4283.8,0.3314]
[1755833577613,4.33541784,4283.9,4283.8,0.3314]
[1755833578491,0.36541784,4283.9,4283.8,0.3314]
[1755833578877,3.969,4283.9,4283.8,0.6982]
[1755833579275,1.796,4284.4,4283.8,0.64412812]
[1755833579583,3.968,4284.3,4283.9,0.02334321]
[1755833579786,3.968,4284.3,4283.9,0.39014321]
[1755833580112,3.968,4284.3,4284.2,0.3104]
[1755833580474,1.796,4284.4,4284.2,0.6772]
[1755833580691,0.002,4284.8,4284.5,2.33395162]
[1755833580984,0.002,4284.8,4284.7,0.3104]
[1755833581191,4.33629709,4284.8,4284.7,0.3104]
[1755833583385,0.36729709,4284.8,4284.7,0.3104]
[1755833583588,4.33429709,4284.8,4284.7,0.3104]
[1755833585294,0.36729709,4284.8,4284.7,0.3104]
[1755833585500,4.33329709,4284.8,4284.7,0.3104]
[1755833585713,4.33329709,4284.8,4284.7,0.701854]
[1755833586679,4.33329709,4284.8,4284.7,1.012254]
[1755833586980,4.33129709,4284.8,4284.7,1.012254]
[1755833587282,4.33029709,4284.8,4284.7,1.012254]
[1755833587706,0.36729709,4284.8,4284.7,1.012254]
[1755833588015,4.32929709,4284.8,4284.7,1.012254]
[1755833588521,4.32929709,4284.8,4284.7,3.71293968]
[1755833588691,4.32929709,4284.8,4284.7,4.34096821]
[1755833588893,4.32929709,4284.8,4284.7,4.31762936]
[1755833589123,3.964,4284.8,4284.7,4.31762936]
[1755833589479,3.964,4284.8,4284.7,3.95082936]
[1755833589675,4.2743,4284.8,4284.7,0.701854]
[1755833589999,3.963,4284.8,4284.7,0.701854]
[1755833590181,3.963,4284.8,4284.7,0.995054]
[1755833592090,3.963,4284.8,4284.7,0.701854]
[1755833592290,4.63958691,4284.8,4284.7,0.701854]
[1755833592510,5.07028691,4284.8,4284.7,0.701854]
[1755833594210,4.32828691,4284.8,4284.7,0.701854]
[1755833594416,4.32828691,4284.8,4284.7,0.995054]
[1755833595124,4.32828691,4284.8,4284.7,0.701854]
[1755833595724,3.963,4284.8,4284.7,0.701854]
[1755833596800,0.002,4284.8,4284.7,0.995054]
[1755833597121,0.002,4284.8,4284.7,4.35573968]
[1755833603795,0.36375198,4285.0,4284.7,3.98893968]
[1755833603999,0.36375198,4285.0,4284.7,0.995054]
[1755833604227,0.36375198,4285.0,4284.8,0.63290319]
[1755833604432,0.3113,4284.8,4284.7,3.03573707]
[1755833604807,0.742,4284.8,4284.7,3.03573707]
[1755833605097,0.3113,4284.8,4284.7,3.03573707]
[1755833605321,0.36375198,4285.0,4284.9,2.33377675]
[1755833606237,0.67505198,4285.0,4284.9,2.33377675]
[1755833606543,0.67505198,4285.0,4284.9,2.87306109]
[1755833606742,0.67505198,4285.0,4284.9,0.53928434]
[1755833607113,1.10575198,4285.0,4284.3,0.66]
[1755833607312,1.10575198,4285.0,4284.8,3.03557845]
[1755833607821,1.10575198,4285.0,4284.8,0.701798]
[1755833608139,0.4307,4284.9,4284.8,0.701798]
[1755833608312,0.742,4284.9,4284.8,1.0719778]
[1755833608515,0.742,4284.9,4284.8,0.701798]
[1755833608832,7.42323118,4284.9,4284.8,0.701798]
[1755833610942,7.78852915,4284.9,4284.8,0.701798]
[1755833613315,1.10729797,4284.9,4284.8,0.701798]
[1755833616058,1.10929797,4284.9,4284.8,0.701798]
[1755833616563,1.10929797,4284.9,4284.6,0.001]
[1755833616720,0.4307,4284.8,4284.6,0.001]
[1755833616915,0.4307,4284.8,4284.7,0.701798]
[1755833617130,4.3757,4284.8,4284.7,0.701798]
[1755833617456,4.687,4284.8,4284.7,0.701798]
[1755833621045,4.685,4284.8,4284.7,0.701798]
[1755833622518,0.36729797,4284.9,4284.7,0.701798]
[1755833622852,4.30829797,4284.9,4284.8,2.35716952]
[1755833623032,4.30829797,4284.9,4284.8,2.66246952]
[1755833623033,0.36729797,4284.9,4284.8,2.66246952]
[1755833623225,0.36729797,4284.9,4284.8,3.68926952]
[1755833623618,0.36729797,4284.9,4284.8,3.66593121]
[1755833623813,0.36729797,4284.9,4284.8,7.31995643]
[1755833624019,0.002,4285.3,4285.2,2.99361336]
[1755833624339,0.002,4285.3,4285.2,3.32224949]
[1755833624649,0.002,4285.3,4285.2,5.25944622]
[1755833624853,0.002,4285.3,4285.2,5.23611009]
[1755833625655,0.002,4285.3,4285.2,9.18011009]
[1755833626214,0.002,4285.3,4285.2,12.18011009]
[1755833626420,0.002,4285.3,4285.2,12.27364909]
[1755833626621,0.022,4285.8,4285.6,5.99339555]
[1755833626926,0.022,4285.8,4285.6,7.43138218]
[1755833627141,1e-08,4285.7,4285.6,7.79818218]
[1755833628166,1e-08,4285.7,4285.6,11.74218218]
[1755833631374,1e-08,4285.7,4285.6,11.37538218]
[1755833631734,1e-08,4285.7,4285.6,10.71538218]
[1755833632160,1e-08,4285.7,4285.6,10.41008218]
[1755833632436,1e-08,4285.7,4285.6,11.07008218]
[1755833633985,1e-08,4285.7,4285.6,11.77162218]
[1755833634744,1e-08,4285.7,4285.6,12.07692218]
[1755833639166,1e-08,4285.7,4285.6,12.44372218]
[1755833641962,1e-08,4285.7,4285.6,12.07692218]
[1755833643408,0.74320001,4285.7,4285.6,7.82762218]
[1755833643720,0.30430001,4285.7,4285.6,7.82762218]
[1755833643919,1e-08,4285.7,4285.6,7.82762218]
[1755833648728,0.75050001,4285.7,4285.6,7.82762218]
[1755833649043,0.75050001,4285.7,4285.6,6.03493555]
[1755833650203,0.75050001,4285.7,4285.6,6.03593555]
[1755833654021,0.75050001,4285.7,4285.6,0.70254]
[1755833654422,0.75050001,4285.7,4285.6,3.03593555]
[1755833654740,0.75050001,4285.7,4285.6,0.70254]
[1755833654932,0.75050001,4285.7,4285.6,3.03593555]
[1755833655138,0.75050001,4285.7,4285.6,0.70254]
[1755833657448,0.75050001,4285.7,4285.6,3.03593555]
[1755833659213,0.66461208,4285.7,4285.6,3.48452766]
[1755833659655,0.36521208,4285.7,4285.6,3.48452766]
[1755833660821,0.36521208,4285.7,4285.6,4.45482766]
[1755833661222,0.36521208,4285.7,4285.6,4.14452766]
[1755833661454,0.66461208,4285.7,4285.6,4.14452766]
[1755833661722,1.11571208,4285.7,4285.6,4.14452766]
[1755833662559,0.36521208,4285.7,4285.6,4.14452766]
[1755833663053,1.11571208,4285.7,4285.6,4.14452766]
[1755833664428,0.66461208,4285.7,4285.6,4.14452766]
[1755833664928,0.36521208,4285.7,4285.6,4.14452766]
[1755833667262,0.66461208,4285.7,4285.6,4.14452766]
[1755833667450,1.11571208,4285.7,4285.6,4.14452766]
[1755833667764,0.66461208,4285.7,4285.6,4.14452766]
[1755833668271,0.36521208,4285.7,4285.6,4.14452766]
[1755833670647,0.36521208,4285.7,4285.6,11.40316161]
[1755833670961,0.002,4286.1,4286.0,5.99317778]
[1755833671259,0.002,4286.1,4286.0,10.22847778]
[1755833671463,0.002,4286.1,4286.0,10.59527778]
[1755833671623,0.002,4286.1,4286.0,10.68879178]
[1755833671827,0.002,4286.1,4286.0,12.31954242]
[1755833674269,0.002,4286.1,4286.0,11.95274242]
[1755833674457,0.002,4286.1,4286.0,12.31954242]
[1755833674839,0.002,4286.1,4286.0,11.95274242]
[1755833676156,0.3014,4286.1,4286.0,7.05744242]
[1755833676353,0.002,4286.1,4286.0,10.98144242]
[1755833676947,0.002,4286.1,4286.0,11.95174242]
[1755833679638,0.002,4286.2,4286.1,5.99312335]
[1755833679948,0.002,4286.2,4286.1,12.59620257]
[1755833680148,1e-08,4286.2,4286.1,12.59620257]
[1755833681478,1e-08,4286.2,4286.1,12.68971257]
[1755833685274,1e-08,4286.2,4286.1,19.70418657]
[1755833686184,1e-08,4286.2,4286.1,22.16618657]
[1755833686555,1e-08,4286.2,4286.1,19.70418657]
[1755833687173,1e-08,4286.6,4286.5,2.99290563]
[1755833687378,1e-08,4286.6,4286.5,10.21850563]
[1755833687705,0.002,4290.2,4288.7,2.3317089]
[1755833687850,0.4558,4289.3,4288.7,18.81034008]
[1755833688053,0.4558,4289.3,4288.8,5.99165454]
[1755833688054,1e-08,4288.9,4288.8,5.99165454]
[1755833688273,1e-08,4288.9,4288.8,13.75920054]
[1755833688478,0.4558,4290.1,4289.6,2.99121969]
[1755833688675,0.002,4290.1,4289.6,11.12238354]
[1755833688895,0.7512,4289.7,4289.6,10.79747135]
[1755833689113,0.7512,4289.7,4289.6,9.96521969]
[1755833689460,0.7512,4289.7,4289.6,10.42101969]
[1755833692249,0.039175,4289.7,4289.6,10.42101969]
[1755833693710,0.002,4290.1,4289.7,5.99116534]
[1755833694510,0.002,4290.1,4289.7,6.29276534]
[1755833694812,0.002,4290.1,4289.7,8.01067354]
[1755833695515,0.002,4290.1,4289.7,8.47067354]
[1755833697175,0.002,4290.1,4290.0,2.99100233]
[1755833697377,0.002,4290.1,4290.0,10.25960233]
[1755833697685,0.002,4290.2,4290.0,10.25960233]
[1755833697686,1e-08,4290.2,4290.1,5.99094799]
[1755833697871,1e-08,4290.2,4290.1,8.97051382]
[1755833699424,0.02,4292.8,4291.7,2.99007898]
[1755833699708,0.3154,4291.8,4291.7,9.97307898]
[1755833699917,0.3154,4291.8,4291.7,5.99007898]
[1755833700122,0.7692,4291.8,4291.7,9.31307898]
[1755833700276,0.7692,4291.8,4291.7,10.67368198]
[1755833700907,0.7692,4291.8,4291.7,3.700603]
[1755833701591,0.7692,4291.8,4291.7,11.67935131]
[1755833702119,0.7692,4291.8,4291.7,7.687603]
[1755833702480,0.7692,4291.8,4291.7,10.01768198]
[1755833703422,0.7692,4291.8,4291.7,7.687603]
[1755833703633,0.7692,4291.8,4291.7,10.01768198]
[1755833703805,0.7692,4291.8,4291.7,7.687603]
[1755833704145,0.7692,4291.8,4291.7,0.700603]
[1755833707617,0.7692,4291.8,4290.6,3.982]
[1755833707800,0.7692,4291.8,4290.7,0.02330622]
[1755833707801,6.68123118,4291.0,4290.7,0.02330622]
[1755833708005,0.2903,4290.8,4290.0,1.793]
[1755833708340,0.2903,4290.8,4290.7,0.700824]
[1755833708541,0.2903,4290.8,4290.7,0.72413022]
[1755833708851,0.7268,4290.8,4290.7,0.72413022]
[1755833709012,0.7268,4290.8,4290.7,0.700824]
[1755833709408,0.7268,4290.8,4290.7,3.03144604]
[1755833710041,0.7268,4290.8,4290.7,0.700824]
[1755833714313,0.7268,4290.8,4290.7,3.03144604]
[1755833714513,0.7268,4290.8,4290.7,0.700824]
[1755833714709,0.7268,4290.8,4290.7,3.03144604]
[1755833715515,0.7268,4290.8,4290.7,0.700824]
[1755833716419,0.7268,4290.8,4290.7,3.03144604]
[1755833716632,0.7268,4290.8,4290.7,0.700824]
[1755833718787,4.6998,4290.8,4290.7,0.700824]
[1755833719661,4.6998,4290.8,4290.1,0.001]
[1755833719859,6.68123118,4290.2,4290.1,0.701824]
[1755833720066,11.38203118,4290.2,4290.1,0.701824]
[1755833720591,11.74689462,4290.2,4290.1,0.701824]
[1755833721288,11.74689462,4290.2,4290.1,0.001]
[1755833721899,14.74689462,4290.2,4290.1,0.001]
[1755833723877,3.0,4290.1,4289.8,0.02]
[1755833724186,0.2903,4289.9,4289.8,0.02]
[1755833724691,0.7268,4289.9,4289.8,0.02]
[1755833728471,4.6968,4289.9,4289.8,0.02]
[1755833728909,10.94253118,4289.9,4289.8,0.02]
[1755833729271,1.793,4290.0,4289.8,0.3153]
[1755833729480,3.972,4289.9,4289.8,0.3153]
[1755833729715,6.68123118,4290.3,4289.8,0.3153]
[1755833730015,3.972,4290.1,4289.8,1.03685536]
[1755833730210,3.973,4290.4,4289.9,0.4568]
[1755833730509,3.973,4290.4,4290.3,0.2953]
[1755833730719,1.793,4290.7,4290.3,0.2953]
[1755833730922,3.972,4290.6,4290.4,0.4568]
[1755833731280,4.33680633,4290.6,4290.5,0.2953]
[1755833732289,0.36480633,4290.6,4290.5,0.2953]
[1755833733013,0.65510633,4290.6,4289.8,2.35105729]
[1755833733325,1.09160633,4290.6,4289.9,3.28088573]
[1755833733495,6.68123118,4290.5,4289.9,0.28088573]
[1755833733696,3.97,4290.4,4289.9,0.28088573]
[1755833733932,3.97,4290.4,4289.8,0.02]
[1755833733933,0.2903,4290.0,4289.8,0.02]
[1755833734128,6.68123118,4290.1,4289.9,0.2953]
[1755833734333,10.65123118,4290.1,4289.9,0.2953]
[1755833734516,10.65123118,4290.1,4289.8,0.02]
[1755833734698,11.01609016,4290.1,4289.8,0.02]
[1755833736089,0.2903,4289.9,4289.8,0.02]
[1755833736495,11.01609016,4290.1,4289.8,0.02]
[1755833737201,11.45259016,4290.1,4289.8,0.02]
[1755833737415,10.65123118,4290.1,4289.8,0.02]
[1755833738625,10.65123118,4290.1,4290.0,0.2982]
[1755833738992,10.64823118,4290.1,4290.0,0.2982]
[1755833739328,1.793,4290.7,4290.0,0.5632361]
[1755833739509,3.969,4290.8,4290.6,2.33066371]
[1755833739713,6.68323118,4291.3,4290.8,2.33052501]
[1755833739714,0.002,4291.3,4290.8,2.33052501]
[1755833739914,3.969,4291.2,4290.8,2.33052501]
[1755833740115,3.969,4291.2,4291.1,0.2982]
[1755833740497,0.002,4291.3,4291.1,0.2982]
[1755833740699,0.002,4291.3,4291.2,2.33035048]
[1755833740898,0.002,4291.3,4291.2,0.7726]
[1755833741218,0.36673696,4291.3,4291.2,3.10295048]
[1755833741593,0.66863696,4291.3,4290.7,3.0]
[1755833741798,0.66863696,4291.3,4290.5,0.66]
[1755833742423,0.66863696,4291.3,4290.4,0.66]
[1755833742604,0.66863696,4291.3,4290.5,3.0]
[1755833742806,0.66863696,4291.3,4290.8,2.33052698]
[1755833743136,0.4544,4291.2,4290.2,3.0]
[1755833743294,3.967,4291.1,4290.3,2.33079952]
[1755833743626,14.85929779,4291.0,4290.1,2.33090936]
[1755833744033,14.85929779,4291.0,4290.0,2.33099005]
[1755833744399,0.36480693,4290.8,4290.0,2.33099005]
[1755833744599,3.968,4290.7,4289.9,2.33105356]
[1755833744837,3.968,4290.7,4290.0,2.33099093]
[1755833745040,3.968,4290.7,4290.0,5.33099093]
[1755833745632,3.968,4290.7,4290.1,2.33093188]
[1755833745928,3.968,4290.7,4290.0,3.0]
[1755833746491,0.3019,4290.1,4289.8,0.02]
[1755833746998,0.4544,4290.0,4289.8,0.02]
[1755833747310,0.3019,4289.9,4289.8,0.02]
[1755833748318,0.7563,4289.9,4289.8,0.02]
[1755833748628,0.3019,4289.9,4289.8,0.02]
[1755833748834,0.4544,4290.2,4289.8,0.02]
[1755833749530,0.4544,4290.1,4289.8,0.02]
[1755833749730,3.967,4290.3,4289.8,0.02]
[1755833749899,0.36485383,4290.2,4289.8,0.02]
[1755833750097,3.964,4290.1,4289.8,2.82277173]
[1755833750302,3.964,4290.1,4289.8,0.49167514]
[1755833750515,3.964,4290.1,4290.0,0.2982]
[1755833751335,0.36485383,4290.2,4290.0,2.62920233]
[1755833751637,0.36485383,4290.2,4290.0,0.56332023]
[1755833751816,0.36485383,4290.2,4290.0,0.2982]
[1755833753746,0.36485383,4290.2,4290.0,2.62919063]
[1755833754648,0.36485383,4290.2,4290.0,2.62917462]
[1755833754950,0.36485383,4290.2,4290.1,2.33094799]
[1755833755152,0.36485383,4290.2,4290.1,2.62914799]
[1755833755308,0.36485383,4290.2,4290.1,3.60167319]
[1755833755519,0.002,4291.0,4290.1,1.2707252]
[1755833755722,0.002,4291.0,4290.2,0.49770893]
[1755833755926,0.002,4291.0,4290.9,2.62871341]
[1755833756453,0.002,4291.0,4290.9,3.10311341]
[1755833756654,0.002,4291.0,4290.9,6.10311341]
[1755833757152,0.002,4291.0,4290.9,6.76311341]
[1755833757353,0.002,4291.0,4290.9,8.06868604]
[1755833758656,0.002,4291.0,4290.9,7.59428604]
[1755833759026,0.002,4291.0,4290.9,8.06868604]
[1755833759960,0.002,4291.0,4290.9,11.55328604]
[1755833760362,0.002,4291.0,4290.9,12.02768604]
[1755833760671,0.002,4291.0,4290.2,0.700811]
[1755833760672,0.7583,4291.0,4290.4,6.28977433]
[1755833760970,0.4544,4290.9,4290.2,2.33089366]
[1755833761175,0.3019,4290.3,4290.1,3.961]
[1755833761346,0.4544,4290.2,4289.9,0.700914]
[1755833761544,0.4544,4290.2,4289.8,0.021]
[1755833761545,0.3019,4290.0,4289.8,0.021]
[1755833761953,0.4544,4289.9,4289.8,0.021]
[1755833762138,0.7563,4289.9,4289.8,0.021]
[1755833762333,7.42526357,4289.9,4289.8,0.021]
[1755833764370,0.7563,4289.9,4289.8,0.021]
[1755833764537,0.3019,4289.9,4289.8,0.021]
[1755833764737,4.32682677,4290.3,4289.8,0.021]
[1755833764970,0.3019,4289.9,4289.8,0.021]
[1755833765274,0.7563,4289.9,4289.8,0.021]
[1755833766034,0.3019,4289.9,4289.8,0.021]
[1755833766850,0.7563,4289.9,4289.8,0.021]
[1755833767377,4.32682677,4290.3,4289.8,0.021]
[1755833767873,0.3019,4289.9,4289.8,0.021]
[1755833770374,0.7732,4289.9,4289.8,0.021]
[1755833772347,4.7282,4289.9,4289.8,0.021]
[1755833775362,7.7282,4289.9,4289.7,0.001]
[1755833775596,3.4713,4289.8,4289.3,0.001]
[1755833775778,14.72484746,4289.4,4288.8,0.02]
[1755833775980,8.747,4289.3,4288.8,0.02]
[1755833776360,0.3096,4289.0,4288.8,0.02]
[1755833776546,4.2636,4289.0,4288.8,0.02]
[1755833776792,4.7349,4289.0,4288.8,0.02]
[1755833778604,5.09990652,4289.0,4288.8,0.02]
[1755833784291,5.09990652,4289.0,4288.8,0.021]
[1755833784601,3.0,4288.9,4288.4,0.001]
[1755833784803,17.72484746,4288.5,4288.4,0.001]
[1755833785011,23.46884746,4288.5,4288.4,0.001]
[1755833785502,23.94014746,4288.5,4288.4,0.001]
[1755833785871,19.99014746,4288.5,4288.4,0.001]
[1755833786074,19.99014746,4288.5,4288.4,0.3123]
[1755833786075,5.744,4288.5,4288.4,0.3123]
[1755833786670,5.744,4288.5,4288.4,0.7795]
[1755833787077,5.744,4288.5,4288.4,0.3123]
[1755833788171,6.10900556,4288.5,4288.4,0.3123]
[1755833790603,2.15900556,4288.5,4288.4,0.3123]
[1755833790817,6.10900556,4288.5,4288.4,0.3123]
[1755833791107,6.10800556,4288.5,4288.4,0.3123]
[1755833794449,6.10800556,4288.5,4288.4,3.11137202]
[1755833794450,0.36500556,4288.5,4288.4,3.11137202]
[1755833794643,0.36500556,4288.5,4288.4,3.65580716]
[1755833794804,3.949,4289.0,4288.7,2.33169478]
[1755833795129,3.949,4289.0,4288.9,0.3113]
[1755833795449,3.949,4289.0,4288.9,0.7785]
[1755833795820,3.949,4289.0,4288.9,1.479692]
[1755833796032,3.949,4289.0,4288.9,1.012492]
[1755833797740,3.947,4289.0,4288.9,1.012492]
[1755833799347,1.794,4289.2,4288.9,1.012492]
[1755833799539,3.946,4289.0,4288.9,1.012492]
[1755833799733,4.31095056,4289.0,4288.9,1.012492]
[1755833799940,4.59785056,4289.0,4288.9,0.701192]
[1755833800137,5.04235056,4289.0,4288.4,0.001]
[1755833800464,0.4445,4288.9,4288.4,0.001]
[1755833800635,19.02368181,4289.0,4288.4,0.001]
[1755833800636,3.946,4288.8,4288.4,0.001]
[1755833801512,4.3905,4288.8,4288.4,0.001]
[1755833802164,3.946,4288.8,4288.4,0.001]
[1755833805153,4.3905,4288.8,4288.4,0.001]
[1755833807745,4.3905,4288.8,4288.3,0.652298]
[1755833807924,0.2869,4288.4,4288.3,0.652298]
[1755833808122,4.2279,4288.4,4288.1,0.001]
[1755833808463,3.941,4288.4,4288.1,0.001]
[1755833809323,14.42583125,4288.9,4288.3,0.2899]
[1755833809532,3.951,4288.8,4288.3,0.2899]
[1755833809730,3.951,4288.8,4288.3,0.5798]
[1755833809957,0.2869,4288.4,4288.3,0.2899]
[1755833810143,4.2379,4288.4,4288.3,0.2899]
[1755833810347,13.15033933,4288.4,4288.1,0.001]
[1755833810518,3.4445,4288.3,4288.0,0.001]
[1755833810723,0.2869,4288.1,4288.0,0.001]
[1755833810939,7.2509,4288.1,4288.0,0.001]
[1755833811137,7.6954,4288.1,4288.0,0.001]
[1755833811537,8.06049844,4288.1,4288.0,0.001]
[1755833812660,6.67393933,4287.9,4287.8,0.02]
[1755833812871,10.92283933,4287.9,4287.8,0.02]
[1755833813038,11.36733933,4287.9,4287.8,0.02]
[1755833813837,11.36733933,4287.9,4287.3,0.001]
[1755833813838,0.66,4287.8,4287.2,0.001]
[1755833814047,0.66,4287.8,4286.8,0.02]
[1755833814048,6.96083933,4287.3,4286.8,0.02]
[1755833814235,6.67393933,4286.9,4286.8,0.02]
[1755833814436,10.92983933,4286.9,4286.8,0.02]
[1755833814726,11.7395161,4286.9,4286.8,0.02]
[1755833816929,11.37433933,4286.9,4286.8,0.02]
[1755833817130,11.73951546,4286.9,4286.8,0.02]
[1755833817436,14.73951546,4286.9,4286.8,0.02]
[1755833817751,14.73951546,4286.9,4286.8,0.021]
[1755833819564,3.0,4286.8,4286.3,0.001]
[1755833819868,9.96083933,4286.4,4286.3,0.001]
[1755833820064,15.72083933,4286.4,4286.3,0.001]
[1755833820234,16.16533933,4286.4,4286.3,0.001]
[1755833820634,16.53059403,4286.4,4286.3,0.001]
[1755833821660,6.1322547,4286.4,4286.3,0.2909]
[1755833821870,6.1322547,4286.4,4286.3,0.7392]
[1755833822068,0.3652547,4286.4,4286.3,0.001]
[1755833822432,4.3372547,4286.4,4286.3,0.2909]
[1755833822729,4.3372547,4286.4,4286.3,0.001]
[1755833822967,4.3372547,4286.4,4286.3,0.2909]
[1755833823191,0.3652547,4286.4,4286.3,0.7392]
[1755833823478,0.3652547,4286.4,4286.3,3.6127532]
[1755833823677,0.3652547,4286.4,4286.3,6.63608334]
[1755833823846,0.3652547,4286.4,4286.3,6.6127532]
[1755833824780,0.3652547,4286.4,4286.3,7.2727532]
[1755833826691,3.972,4287.2,4286.9,2.332681]
[1755833826985,4.33712455,4287.2,4287.1,0.2899]
[1755833827283,0.36512455,4287.2,4287.1,0.2899]
[1755833827884,0.36512455,4287.2,4287.1,3.06247913]
[1755833828098,0.36512455,4287.2,4287.1,3.36955818]
[1755833828300,5.785,4287.8,4287.7,2.33225272]
[1755833828505,0.02,4287.8,4287.7,3.07235272]
[1755833831562,0.02,4287.8,4287.7,3.77364872]
[1755833831763,0.02,4287.8,4287.7,4.38424896]
[1755833832489,0.02,4287.8,4287.7,1.61199624]
[1755833832692,0.02,4287.8,4287.7,0.701296]
[1755833833195,0.3216,4287.8,4287.2,2.33247949]
[1755833833488,0.7493,4287.8,4287.4,0.4277]
[1755833833665,0.4277,4287.7,4287.4,0.4277]
[1755833834058,0.02,4287.8,4286.4,9.202]
[1755833834059,0.3016,4287.5,4286.4,9.202]
[1755833834258,0.3016,4287.5,4287.0,2.33262764]
[1755833834584,0.02,4287.8,4287.3,2.33246144]
[1755833834785,0.36507298,4287.4,4287.2,2.33250831]
[1755833835190,0.3016,4287.3,4287.1,0.4277]
[1755833835359,0.36507298,4287.4,4287.1,2.76025982]
[1755833835756,0.36507298,4287.4,4287.2,2.33251561]
[1755833835958,0.36507298,4287.4,4287.1,2.76026569]
[1755833836291,0.36507298,4287.4,4287.3,2.63257031]
[1755833836493,0.022,4287.8,4287.7,2.33225272]
[1755833836793,0.022,4287.8,4287.7,0.3001]